bitfinex-derivatives/quotes_BTCF0:USTF0_20260106
["timestamp","ask_amount","ask_price","bid_price","bid_amount"]
[1767720374403,0.010787,92734.0,92719.0,0.010788]
[1767720374593,0.010787,92732.0,92717.0,0.14602112]
[1767720374793,0.010787,92730.0,92711.0,0.05056515]
[1767720374994,0.010787,92731.0,92711.0,0.14602112]
[1767720375189,0.010787,92731.0,92715.0,0.010789]
[1767720375507,0.1493521,92736.0,92713.0,0.010789]
[1767720375704,0.010787,92731.0,92713.0,0.010789]
[1767720376003,0.010788,92727.0,92712.0,0.010789]
[1767720376207,0.010787,92730.0,92714.0,0.010789]
[1767720376405,0.010787,92733.0,92716.0,0.010789]
[1767720377606,0.09674444,92735.0,92712.0,0.09545597]
[1767720378008,0.010787,92733.0,92715.0,0.010789]
[1767720378206,0.010787,92733.0,92716.0,0.010789]
[1767720378702,0.010787,92731.0,92712.0,0.09545597]
[1767720379104,0.010787,92734.0,92712.0,0.09545597]
[1767720379303,0.010787,92732.0,92712.0,0.09545597]
[1767720380603,0.05260766,92734.0,92712.0,0.09545597]
[1767720380831,0.09176,92742.0,92700.0,5.0]
[1767720380832,0.05260766,92727.0,92700.0,5.0]
[1767720380999,0.010789,92715.0,92700.0,5.0]
[1767720381711,0.010789,92716.0,92700.0,5.0]
[1767720382013,0.1601411,92713.0,92700.0,5.0]
[1767720383303,0.10753344,92713.0,92700.0,5.0]
[1767720383708,0.01079,92711.0,92700.0,5.0]
[1767720385304,0.09674444,92713.0,92700.0,5.0]
[1767720386406,0.09674444,92713.0,92700.0,4.992]
[1767720386711,0.010789,92714.0,92700.0,4.992]
[1767720387103,0.010789,92718.0,92700.0,4.992]
[1767720387510,0.010789,92716.0,92700.0,4.992]
[1767720387917,0.010789,92714.0,92700.0,4.992]
[1767720388212,0.010789,92717.0,92700.0,5.08745597]
[1767720388806,0.010789,92719.0,92701.0,0.010791]
[1767720389007,0.010788,92723.0,92704.0,0.01079]
[1767720389204,0.010787,92729.0,92714.0,0.05056515]
[1767720389405,0.09176,92729.0,92714.0,0.05056515]
[1767720389605,0.010788,92726.0,92709.0,0.05056515]
[1767720389806,0.010788,92724.0,92707.0,0.10624597]
[1767720390106,0.09674444,92726.0,92709.0,0.01079]
[1767720390301,0.010788,92725.0,92706.0,0.01079]
[1767720390511,0.09176,92729.0,92700.0,4.992]
[1767720390512,0.10753344,92718.0,92701.0,0.010791]
[1767720391310,0.09674444,92718.0,92701.0,0.010791]
[1767720391704,0.14480667,92718.0,92700.0,4.992]
[1767720391912,0.09739774,92716.0,92700.0,4.992]
[1767720393105,0.010789,92713.0,92700.0,4.992]
[1767720394213,0.010789,92713.0,92700.0,4.953]
[1767720395023,0.01079,92711.0,92700.0,4.953]
[1767720395226,0.04806223,92715.0,92700.0,4.953]
[1767720395227,0.01079,92709.0,92700.0,4.953]
[1767720395522,0.010789,92712.0,92700.0,4.953]
[1767720396111,0.010789,92715.0,92700.0,4.953]
[1767720396521,0.09176,92719.0,92700.0,4.953]
[1767720397216,0.23721997,92719.0,92700.0,4.953]
[1767720398517,0.010789,92712.0,92700.0,4.953]
[1767720398718,0.01079,92710.0,92700.0,4.953]
[1767720401915,0.01079,92710.0,92700.0,4.938]
[1767720402224,0.02484122,92710.0,92700.0,4.938]
[1767720403015,0.010789,92713.0,92700.0,4.85051746]
[1767720403218,0.09176,92719.0,92701.0,0.04933179]
[1767720403922,0.010789,92713.0,92701.0,0.04933179]
[1767720404123,0.01079,92711.0,92701.0,0.04933179]
[1767720406023,0.01079,92705.0,92700.0,4.6903231]
[1767720406530,0.01079,92708.0,92700.0,4.6903231]
[1767720407224,0.06254238,92714.0,92700.0,4.6903231]
[1767720407429,0.010789,92711.0,92700.0,4.6903231]
[1767720407628,0.01079,92709.0,92700.0,4.6903231]
[1767720407820,0.11187789,92714.0,92700.0,4.6903231]
[1767720408015,0.01079,92707.0,92700.0,4.6903231]
[1767720408624,0.01079,92709.0,92700.0,4.6903231]
[1767720409328,0.10255,92709.0,92700.0,4.6903231]
[1767720409514,0.10255,92709.0,92700.0,4.65532309]
[1767720410229,0.01079,92707.0,92700.0,4.65532309]
[1767720410427,0.09176,92709.0,92700.0,4.65532309]
[1767720411429,0.10255,92709.0,92700.0,4.65532309]
[1767720411627,0.09176,92709.0,92700.0,4.65532309]
[1767720415923,0.09176,92709.0,92700.0,4.56783731]
[1767720416130,0.09176,92709.0,92700.0,4.42202768]
[1767720416334,0.10255,92709.0,92700.0,4.42202768]
[1767720416631,0.010791,92702.0,92700.0,2.20897431]
[1767720416931,0.010791,92699.0,92688.0,0.09841882]
[1767720417126,0.09176,92699.0,92688.0,0.09841882]
[1767720417322,0.010792,92692.0,92677.0,0.03520116]
[1767720417618,0.10876,92699.0,92677.0,0.03520116]
[1767720417819,0.09176,92699.0,92682.0,0.010793]
[1767720418035,0.09176,92701.0,92682.0,0.010793]
[1767720418219,0.09176,92705.0,92699.0,0.010791]
[1767720418530,0.09176,92707.0,92701.0,0.010791]
[1767720418736,0.09176,92709.0,92689.0,0.010792]
[1767720419233,0.09176,92709.0,92700.0,0.1103866]
[1767720419530,0.09176,92708.0,92700.0,0.0995956]
[1767720420529,0.09176,92709.0,92700.0,0.0995956]
[1767720422138,0.09176,92709.0,92694.0,0.09335392]
[1767720422641,0.09176,92709.0,92695.0,0.09335392]
[1767720423943,0.09176,92709.0,92696.0,0.09335392]
[1767720424238,0.09176,92709.0,92697.0,0.09335392]
[1767720424837,0.01079,92708.0,92697.0,0.09335392]
[1767720425539,0.09176,92709.0,92697.0,0.09335392]
[1767720425936,0.09176,92709.0,92697.0,0.00586522]
[1767720426136,0.09176,92709.0,92683.0,0.89208]
[1767720426340,0.10255,92709.0,92683.0,0.89208]
[1767720426532,0.10255,92709.0,92692.0,0.010792]
[1767720427235,0.10255,92709.0,92683.0,0.89208]
[1767720427436,0.10255,92709.0,92690.0,0.010792]
[1767720428141,0.10255,92709.0,92692.0,0.09188977]
[1767720428336,0.18780101,92709.0,92693.0,0.09188977]
[1767720428537,0.13449955,92718.0,92703.0,0.09335392]
[1767720428735,0.13449955,92718.0,92702.0,0.09188977]
[1767720428736,0.09176,92720.0,92705.0,0.09335392]
[1767720429441,0.18759507,92739.0,92710.0,0.12710501]
[1767720429442,0.20475084,92738.0,92710.0,0.12710501]
[1767720429631,0.27935507,92739.0,92722.0,0.010788]
[1767720429838,0.010787,92735.0,92714.0,0.010789]
[1767720430135,0.09656396,92737.0,92711.0,0.09176]
[1767720430333,0.19396484,92735.0,92711.0,0.09176]
[1767720430538,0.010787,92734.0,92711.0,0.09176]
[1767720430747,0.10590084,92739.0,92715.0,0.09335392]
[1767720431050,0.10590084,92739.0,92717.0,0.09335392]
[1767720431236,0.10590084,92739.0,92720.0,0.1019178]
[1767720431545,0.09740088,92748.0,92725.0,0.08884151]
[1767720431843,0.09176,92747.0,92726.0,0.09335392]
[1767720432039,0.09176,92747.0,92727.0,0.18219543]
[1767720432244,0.010785,92746.0,92727.0,0.18219543]
[1767720432632,0.10626179,92747.0,92727.0,0.18219543]
[1767720433942,0.10626179,92747.0,92727.0,0.08435392]
[1767720434134,0.010786,92744.0,92727.0,0.08435392]
[1767720434341,0.010786,92744.0,92723.0,0.08834768]
[1767720434639,0.010786,92744.0,92724.0,0.010788]
[1767720434844,0.010785,92746.0,92726.0,0.010788]
[1767720435345,0.010785,92746.0,92723.0,0.08834768]
[1767720435642,0.30022663,92747.0,92723.0,0.08834768]
[1767720435845,0.18759507,92778.0,92732.0,0.09335392]
[1767720435846,0.09740088,92754.0,92732.0,0.09335392]
[1767720436044,0.09740088,92754.0,92730.0,0.12710501]
[1767720436045,0.09176,92753.0,92733.0,0.08738449]
[1767720436244,0.09176,92753.0,92738.0,0.010786]
[1767720436840,0.09176,92753.0,92735.0,0.010787]
[1767720438345,0.18916088,92753.0,92735.0,0.010787]
[1767720438547,0.18916088,92753.0,92737.0,0.010786]
[1767720439438,0.18916088,92753.0,92733.0,0.08738449]
[1767720439644,0.09698017,92748.0,92734.0,0.010787]
[1767720440042,0.09698017,92748.0,92736.0,0.010787]
[1767720440857,0.09698017,92748.0,92733.0,0.010787]
[1767720441540,0.28572484,92753.0,92733.0,0.010787]
[1767720441541,0.09698017,92747.0,92733.0,0.010787]
[1767720441740,0.09698017,92747.0,92733.0,0.005787]
[1767720441942,0.09698017,92747.0,92730.0,0.03608974]
[1767720442249,0.09698017,92748.0,92734.0,0.010787]
[1767720443042,0.09698017,92748.0,92736.0,0.010787]
[1767720443243,0.09698017,92748.0,92722.0,0.010788]
[1767720443244,0.13580813,92756.0,92741.0,0.01945473]
[1767720443440,0.09176,92761.0,92741.0,0.09335392]
[1767720443641,0.01340272,92761.0,92741.0,0.09335392]
[1767720443842,0.09176,92764.0,92744.0,0.09335392]
[1767720444349,0.09176,92764.0,92750.0,0.010785]
[1767720444654,0.09176,92764.0,92752.0,0.010785]
[1767720444843,0.09176,92764.0,92741.0,0.010786]
[1767720444844,0.09656396,92777.0,92758.0,0.010784]
[1767720445042,0.01078,92791.0,92755.0,0.010784]
[1767720445043,0.19910596,92776.0,92755.0,0.010784]
[1767720445246,0.09176,92775.0,92755.0,0.010784]
[1767720445635,0.21843673,92776.0,92755.0,0.010784]
[1767720445941,0.09176,92775.0,92757.0,0.010784]
[1767720446140,0.09176,92775.0,92759.0,0.010784]
[1767720446551,0.09176,92775.0,92761.0,0.010784]
[1767720447548,0.09172,92779.0,92761.0,0.09335392]
[1767720447754,0.09172,92779.0,92760.0,0.12710501]
[1767720447755,0.09740088,92788.0,92769.0,0.010783]
[1767720447954,0.09172,92787.0,92766.0,0.010783]
[1767720448150,0.09740088,92788.0,92768.0,0.010783]
[1767720448151,0.11087544,92788.0,92768.0,0.010783]
[1767720448355,0.102501,92787.0,92765.0,0.10267277]
[1767720448548,0.010781,92781.0,92760.0,0.21899478]
[1767720448752,0.010781,92781.0,92761.0,0.09188977]
[1767720449348,0.010781,92781.0,92761.0,0.05588977]
[1767720450055,0.010781,92781.0,92761.0,0.06667377]
[1767720450349,0.010782,92780.0,92761.0,0.05588977]
[1767720450557,0.09656396,92772.0,92740.0,0.12710501]
[1767720450856,0.09740088,92771.0,92749.0,0.09335392]
[1767720451057,0.19396484,92768.0,92750.0,0.010785]
[1767720452057,0.19358141,92761.0,92747.0,0.09172]
[1767720452246,0.19358141,92761.0,92743.0,0.102506]
[1767720452556,0.09690263,92767.0,92747.0,0.07686274]
[1767720452757,0.09690263,92767.0,92745.0,0.09862557]
[1767720452958,0.19358141,92767.0,92747.0,0.010785]
[1767720453253,0.19358141,92766.0,92747.0,0.010785]
[1767720453450,0.19358141,92766.0,92749.0,0.010785]
[1767720453756,0.19358141,92766.0,92751.0,0.010785]
[1767720453955,0.19358141,92766.0,92753.0,0.010785]
[1767720454557,0.09690263,92773.0,92759.0,0.010784]
[1767720454858,0.18839878,92775.0,92762.0,0.010784]
[1767720454859,0.09172,92775.0,92762.0,0.010784]
[1767720455458,0.09172,92775.0,92759.0,0.08014706]
[1767720455659,0.09172,92775.0,92759.0,0.010784]
[1767720455965,0.09172,92775.0,92761.0,0.010784]
[1767720456352,0.09172,92775.0,92758.0,0.10940957]
[1767720456546,0.09172,92775.0,92758.0,0.010784]
[1767720457055,0.19358141,92759.0,92738.0,0.09172]
[1767720457252,0.09690263,92758.0,92738.0,0.09172]
[1767720457457,0.09690263,92744.0,92730.0,0.010787]
[1767720457652,0.09172,92748.0,92729.0,0.00215683]
[1767720457861,0.09172,92751.0,92736.0,0.010787]
[1767720458059,0.102505,92751.0,92730.0,0.010787]
[1767720458365,0.102505,92751.0,92713.0,0.010789]
[1767720458366,0.09690263,92733.0,92713.0,0.010789]
[1767720458567,0.09690263,92733.0,92708.0,0.00010957]
[1767720458568,0.09690263,92733.0,92710.0,0.01079]
[1767720458858,0.010787,92732.0,92710.0,0.01079]
[1767720459059,0.19358141,92732.0,92710.0,0.01079]
[1767720459261,0.09690263,92731.0,92712.0,0.010789]
[1767720459661,0.19358141,92731.0,92712.0,0.010789]
[1767720459857,0.09690263,92730.0,92712.0,0.010789]
[1767720460060,0.19358141,92730.0,92712.0,0.010789]
[1767720460457,0.19358141,92730.0,92714.0,0.010789]
[1767720460653,0.20711077,92730.0,92711.0,0.010789]
[1767720460962,0.09690263,92727.0,92713.0,0.010789]
[1767720461156,0.09690263,92727.0,92710.0,0.01079]
[1767720461760,0.09690263,92727.0,92708.0,0.00010957]
[1767720461956,0.09690263,92727.0,92709.0,0.01079]
[1767720463169,0.09690263,92727.0,92708.0,0.00010957]
[1767720463461,0.09690263,92727.0,92712.0,0.010789]
[1767720465365,0.09690263,92727.0,92709.0,0.01079]
[1767720465666,0.19080474,92726.0,92705.0,0.01079]
[1767720465867,0.090853,92725.0,92707.0,0.01079]
[1767720466067,0.00010957,92724.0,92707.0,0.01079]
[1767720466367,0.19091431,92724.0,92707.0,0.01079]
[1767720467065,0.19091431,92724.0,92709.0,0.01079]
[1767720469060,0.19091431,92724.0,92706.0,0.01079]
[1767720469767,0.19091431,92724.0,92703.0,0.01079]
[1767720469970,0.19091431,92724.0,92702.0,0.09061857]
[1767720470172,0.090853,92723.0,92702.0,0.09061857]
[1767720470363,0.10006131,92724.0,92703.0,0.01079]
[1767720470364,0.19080474,92722.0,92703.0,0.01079]
[1767720470665,0.19080474,92722.0,92702.0,0.09061857]
[1767720470666,0.090853,92719.0,92702.0,0.09061857]
[1767720470885,0.19080474,92716.0,92699.0,0.010791]
[1767720471065,8.662e-05,92715.0,92701.0,0.010791]
[1767720471667,8.662e-05,92715.0,92703.0,0.01079]
[1767720472270,8.662e-05,92715.0,92700.0,0.010791]
[1767720472572,0.19080474,92714.0,92700.0,0.010791]
[1767720472871,0.19080474,92714.0,92695.0,0.09176]
[1767720473270,0.19080474,92714.0,92698.0,0.010791]
[1767720473464,0.19080474,92714.0,92696.0,0.010791]
[1767720473969,8.662e-05,92715.0,92698.0,0.010791]
[1767720473970,0.090853,92712.0,92698.0,0.010791]
[1767720474160,0.090853,92712.0,92695.0,0.09176]
[1767720474161,0.090853,92712.0,92699.0,0.010791]
[1767720474362,0.090853,92712.0,92695.0,0.09176]
[1767720474569,0.090853,92712.0,92703.0,0.01079]
[1767720474774,8.662e-05,92715.0,92706.0,0.01079]
[1767720475362,0.010786,92742.0,92721.0,0.010788]
[1767720475575,0.09176,92741.0,92714.0,0.104854]
[1767720475775,0.09176,92741.0,92715.0,0.010789]
[1767720476767,0.09176,92741.0,92722.0,0.010788]
[1767720476964,0.09176,92741.0,92717.0,0.010789]
[1767720477270,0.19080474,92735.0,92716.0,0.010789]
[1767720477468,0.19080474,92735.0,92718.0,0.010789]
[1767720477674,0.19080474,92734.0,92718.0,0.010789]
[1767720477875,0.19080474,92729.0,92712.0,0.010789]
[1767720478075,0.19080474,92729.0,92705.0,0.09176]
[1767720478076,0.19171174,92728.0,92718.0,0.010789]
[1767720478775,0.19171174,92728.0,92715.0,0.010789]
[1767720479165,0.19171174,92728.0,92712.0,0.010789]
[1767720479368,0.010788,92726.0,92705.0,0.09176]
[1767720479569,0.090853,92725.0,92710.0,0.01079]
[1767720480072,0.090853,92725.0,92712.0,0.010789]
[1767720480468,0.090853,92725.0,92705.0,0.084549]
[1767720480664,0.09176,92728.0,92695.0,0.010791]
[1767720480665,0.090853,92722.0,92695.0,0.010791]
[1767720480966,0.090853,92722.0,92707.0,0.01079]
[1767720481481,0.18723027,92722.0,92707.0,0.01079]
[1767720481877,0.09637727,92721.0,92707.0,0.01079]
[1767720482179,0.09637727,92720.0,92696.0,0.09949499]
[1767720482480,0.09637727,92720.0,92702.0,0.010791]
[1767720482981,0.09637727,92720.0,92706.0,0.01079]
[1767720483181,0.09637727,92719.0,92696.0,0.09949499]
[1767720483484,0.09176,92718.0,92704.0,0.01079]
[1767720484185,0.18813727,92718.0,92704.0,0.01079]
[1767720486177,0.18813727,92718.0,92696.0,0.09949499]
[1767720486372,0.06007271,92739.0,92695.0,0.10500129]
[1767720486373,0.0935101,92723.0,92699.0,0.09639911]
[1767720486675,0.09176,92722.0,92709.0,0.01079]
[1767720487075,0.1852701,92722.0,92702.0,0.09639911]
[1767720487377,0.1852701,92722.0,92696.0,0.0936595]
[1767720487378,0.0935101,92721.0,92708.0,0.01079]
[1767720488275,0.0935101,92721.0,92697.0,0.09018911]
[1767720488476,0.0935101,92721.0,92707.0,0.01079]
[1767720488781,0.0935101,92721.0,92708.0,0.01079]
[1767720490083,0.0935101,92721.0,92706.0,0.01079]
[1767720490289,0.19563181,92720.0,92703.0,0.01079]
[1767720490491,0.19563181,92720.0,92697.0,0.09018911]
[1767720490492,0.18484381,92720.0,92697.0,0.09018911]
[1767720490783,0.18484381,92720.0,92698.0,0.010791]
[1767720490984,0.18484381,92720.0,92708.0,0.01079]
[1767720491383,0.0935101,92719.0,92704.0,0.01079]
[1767720491775,0.18484381,92716.0,92692.0,0.1854195]
[1767720491973,0.09176,92722.0,92692.0,0.09176]
[1767720491974,0.0935101,92713.0,92692.0,0.09176]
[1767720492177,0.09133371,92707.0,92689.0,0.010792]
[1767720492481,0.010788,92725.0,92686.0,0.19005861]
[1767720492482,0.09176,92709.0,92686.0,0.19005861]
[1767720492681,0.1960601,92709.0,92686.0,0.19005861]
[1767720493084,0.0935101,92708.0,92686.0,0.19005861]
[1767720493881,0.09133371,92706.0,92692.0,0.010792]
[1767720494080,0.18484381,92706.0,92692.0,0.010792]
[1767720494383,0.18484381,92706.0,92694.0,0.010791]
[1767720494692,0.09176,92709.0,92694.0,0.010791]
[1767720494890,0.010789,92715.0,92697.0,0.010791]
[1767720495088,0.09176,92714.0,92697.0,0.010791]
[1767720495283,0.0935101,92709.0,92685.0,0.19005861]
[1767720495591,0.09133371,92706.0,92689.0,0.010792]
[1767720495889,0.0935101,92704.0,92685.0,0.08739911]
[1767720496089,0.0935101,92704.0,92690.0,0.010792]
[1767720496282,0.09133371,92705.0,92692.0,0.010792]
[1767720496691,0.09133371,92705.0,92682.0,0.09176]
[1767720496692,0.0935101,92704.0,92682.0,0.09176]
[1767720496988,0.0935101,92703.0,92686.0,0.010792]
[1767720497493,0.09176,92714.0,92683.0,0.010793]
[1767720497494,0.0935101,92700.0,92683.0,0.010793]
[1767720497678,0.18484381,92699.0,92683.0,0.010793]
[1767720498294,0.18484381,92699.0,92685.0,0.010792]
[1767720498483,0.0935101,92698.0,92687.0,0.010792]
[1767720498688,0.0935101,92697.0,92678.0,0.09176]
[1767720498991,0.0935101,92697.0,92680.0,0.010793]
[1767720498992,0.0935101,92693.0,92680.0,0.010793]
[1767720499182,0.0935101,92693.0,92684.0,0.010793]
[1767720499694,0.09133371,92694.0,92678.0,0.09176]
[1767720500190,0.09133371,92694.0,92686.0,0.010792]
[1767720500902,0.09133371,92694.0,92683.0,0.010793]
[1767720501088,0.18484381,92694.0,92679.0,0.010793]
[1767720502195,0.18484381,92694.0,92678.0,0.09176]
[1767720502394,0.18484381,92694.0,92683.0,0.010793]
[1767720502594,0.18484381,92694.0,92680.0,0.010793]
[1767720502792,0.18484381,92690.0,92665.0,0.19005861]
[1767720502996,0.0935101,92688.0,92673.0,0.010794]
[1767720503295,0.0935101,92688.0,92661.0,0.05826043]
[1767720503296,0.09133371,92683.0,92661.0,0.09176]
[1767720503486,0.0935101,92684.0,92661.0,0.09176]
[1767720503487,0.09133371,92681.0,92661.0,0.09176]
[1767720503688,0.0935101,92678.0,92661.0,0.090555]
[1767720503888,0.09133371,92679.0,92659.0,8.708e-05]
[1767720503889,0.18484381,92677.0,92659.0,8.708e-05]
[1767720504195,0.18484381,92676.0,92659.0,8.708e-05]
[1767720504397,0.0935101,92675.0,92664.0,0.010795]
[1767720504997,0.0935101,92675.0,92666.0,0.010795]
[1767720505297,0.0935101,92675.0,92668.0,0.010794]
[1767720505493,0.18484381,92675.0,92659.0,0.01088208]
[1767720505797,0.09176,92684.0,92672.0,0.010794]
[1767720506097,0.010792,92694.0,92675.0,0.010794]
[1767720506297,0.09176,92693.0,92675.0,0.010794]
[1767720506597,0.09176,92693.0,92660.0,0.10719411]
[1767720506598,0.09176,92692.0,92677.0,0.010793]
[1767720506794,0.102552,92692.0,92663.0,0.09639911]
[1767720506996,0.09176,92692.0,92673.0,0.010794]
[1767720507696,0.09176,92692.0,92659.0,0.10454158]
[1767720507697,0.0935101,92686.0,92675.0,0.010794]
[1767720507894,0.18484381,92685.0,92675.0,0.010794]
[1767720508091,0.0935101,92684.0,92675.0,0.010794]
[1767720508593,0.18484381,92683.0,92669.0,0.010794]
[1767720508897,0.0935101,92681.0,92660.0,0.09639911]
[1767720509288,0.0935101,92681.0,92672.0,0.010794]
[1767720509897,0.0935101,92681.0,92660.0,0.09639911]
[1767720509898,0.0935101,92681.0,92673.0,0.010794]
[1767720510397,0.0935101,92681.0,92658.0,0.0936595]
[1767720510398,0.0935101,92664.0,92639.0,0.09581843]
[1767720510597,0.0935101,92663.0,92649.0,0.010797]
[1767720511386,0.09398824,92661.0,92640.0,0.0918]
[1767720511584,0.09398824,92659.0,92640.0,0.0918]
[1767720512401,0.09398824,92657.0,92640.0,0.0918]
[1767720512598,0.09233738,92658.0,92639.0,0.00215893]
[1767720512599,0.09398824,92654.0,92639.0,0.00215893]
[1767720513285,0.09398824,92650.0,92633.0,0.010799]
[1767720513491,0.09398824,92648.0,92633.0,0.010799]
[1767720513696,0.09398824,92648.0,92635.0,0.010798]
[1767720513892,0.09398824,92648.0,92622.0,0.20074316]
[1767720513893,0.09398824,92644.0,92622.0,0.1902453]
[1767720514096,0.09398824,92643.0,92633.0,0.010799]
[1767720514700,0.09398824,92643.0,92623.0,0.0108]
[1767720514899,0.09398824,92643.0,92633.0,0.010798]
[1767720515099,0.09233738,92644.0,92633.0,0.010798]
[1767720515499,0.09233738,92644.0,92635.0,0.010798]
[1767720515704,0.09398824,92646.0,92623.0,0.1092453]
[1767720517497,0.09398824,92646.0,92631.0,0.010799]
[1767720517698,0.10478624,92639.0,92622.0,0.0108]
[1767720518002,0.00010499,92638.0,92622.0,0.0108]
[1767720518204,0.00010499,92638.0,92624.0,0.0108]
[1767720518407,0.00010499,92638.0,92618.0,0.0918]
[1767720518603,0.09409323,92638.0,92618.0,0.0918]
[1767720519308,0.09409323,92638.0,92622.0,0.0108]
[1767720519509,0.09409323,92638.0,92624.0,0.0108]
[1767720519699,0.09409323,92638.0,92618.0,0.0918]
[1767720519700,0.09409323,92638.0,92627.0,0.010799]
[1767720519901,0.10672599,92638.0,92627.0,0.010799]
[1767720520212,0.09398824,92637.0,92625.0,0.010799]
[1767720520707,0.09398824,92637.0,92618.0,0.088599]
[1767720520708,0.010796,92652.0,92630.0,0.0984453]
[1767720521011,0.010797,92649.0,92630.0,0.010799]
[1767720521401,0.010797,92649.0,92627.0,0.010799]
[1767720522412,0.010797,92646.0,92618.0,0.088599]
[1767720522599,0.18632562,92648.0,92627.0,0.010799]
[1767720522806,0.0918,92651.0,92629.0,0.0984453]
[1767720523006,0.09398824,92650.0,92629.0,0.0984453]
[1767720523514,0.09398824,92650.0,92630.0,0.010799]
[1767720523515,0.09233738,92649.0,92630.0,0.010799]
[1767720523716,0.09398824,92648.0,92630.0,0.010799]
[1767720524106,0.09398824,92646.0,92624.0,0.0984453]
[1767720524409,0.10313438,92647.0,92597.0,0.01091045]
[1767720524410,0.09398824,92630.0,92612.0,0.010801]
[1767720524613,0.09398824,92630.0,92616.0,0.0108]
[1767720524811,0.09398824,92630.0,92609.0,0.10060493]
[1767720525015,0.09398824,92613.0,92595.0,0.010803]
[1767720525207,0.18632562,92611.0,92588.0,0.010804]
[1767720525413,0.0918,92611.0,92590.0,0.09149786]
[1767720525714,0.0918,92611.0,92601.0,0.010802]
[1767720526015,0.0918,92611.0,92597.0,0.01091045]
[1767720526416,0.0918,92611.0,92599.0,0.010802]
[1767720527019,0.0918,92611.0,92603.0,0.010802]
[1767720527210,0.0918,92611.0,92600.0,0.010802]
[1767720527416,0.0918,92611.0,92597.0,0.01091045]
[1767720527817,0.18578824,92611.0,92597.0,0.00010745]
[1767720529615,0.09398824,92609.0,92597.0,0.00010745]
[1767720529816,0.09398824,92609.0,92584.0,0.010804]
[1767720529817,0.09233738,92608.0,92584.0,0.010804]
[1767720530011,0.09398824,92606.0,92594.0,0.010803]
[1767720530214,0.09398824,92606.0,92584.0,0.010804]
[1767720530610,0.18632562,92606.0,92584.0,0.010804]
[1767720530807,0.09407913,92605.0,92584.0,0.010804]
[1767720531029,0.09407913,92605.0,92579.0,0.09400033]
[1767720531030,0.09398824,92600.0,92579.0,0.09400033]
[1767720531229,0.09398824,92600.0,92580.0,0.010805]
[1767720531431,0.09398824,92600.0,92589.0,0.010804]
[1767720531727,0.09398824,92600.0,92579.0,0.09400033]
[1767720531926,0.09398824,92600.0,92560.0,0.010807]
[1767720531927,0.19712862,92593.0,92563.0,0.18994316]
[1767720532126,0.09184,92599.0,92572.0,0.010806]
[1767720532127,0.18632562,92587.0,92572.0,0.010806]
[1767720532429,0.09398824,92585.0,92569.0,0.010806]
[1767720532633,0.18642742,92584.0,92571.0,0.010806]
[1767720532840,0.18642742,92584.0,92569.0,0.010806]
[1767720533135,0.09398824,92583.0,92563.0,0.010807]
[1767720533343,0.09398824,92583.0,92572.0,0.010806]
[1767720534339,0.09243918,92584.0,92576.0,0.010805]
[1767720534538,0.09184,92588.0,92566.0,0.010806]
[1767720534738,0.09398824,92594.0,92584.0,0.010804]
[1767720534934,0.09184,92593.0,92584.0,0.010804]
[1767720535140,0.10525702,92600.0,92568.0,0.09149786]
[1767720535141,0.09184,92596.0,92568.0,0.09149786]
[1767720535436,0.06019268,92607.0,92561.0,0.09184]
[1767720535437,0.09184,92609.0,92581.0,0.09149786]
[1767720535633,0.18582824,92608.0,92597.0,0.010803]
[1767720535840,0.18582824,92608.0,92582.0,0.09184]
[1767720536027,0.09398824,92607.0,92591.0,0.010803]
[1767720536634,0.09398824,92606.0,92591.0,0.010803]
[1767720536836,0.09398824,92605.0,92591.0,0.010803]
[1767720537334,0.09184,92611.0,92595.0,0.010803]
[1767720537534,0.09966144,92609.0,92595.0,0.010803]
[1767720537736,0.09966144,92609.0,92586.0,0.09088055]
[1767720537737,0.19626237,92608.0,92582.0,0.09184]
[1767720537938,0.09966144,92604.0,92579.0,0.09088055]
[1767720538140,0.09966144,92604.0,92589.0,0.010804]
[1767720538141,0.09660093,92603.0,92589.0,0.010804]
[1767720538338,0.09966144,92602.0,92580.0,0.09184]
[1767720538538,0.09966144,92602.0,92592.0,0.010803]
[1767720539136,0.09966144,92602.0,92580.0,0.09184]
[1767720539137,0.09966144,92602.0,92596.0,0.010803]
[1767720539343,0.09184,92611.0,92588.0,0.09088055]
[1767720539543,0.09184,92611.0,92591.0,0.09088055]
[1767720539743,0.09188,92612.0,92604.0,0.010802]
[1767720540043,0.09188,92612.0,92586.0,0.10168455]
[1767720540738,0.09188,92612.0,92596.0,0.010803]
[1767720541135,0.09188,92612.0,92599.0,0.010802]
[1767720541446,0.09202086,92610.0,92599.0,0.010802]
[1767720541747,0.09202086,92610.0,92597.0,0.010803]
[1767720542144,0.09202086,92610.0,92601.0,0.010802]
[1767720542349,0.09202086,92624.0,92609.0,0.010801]
[1767720542541,0.09202086,92624.0,92592.0,0.09020611]
[1767720542542,0.09188,92623.0,92599.0,0.08488124]
[1767720542740,0.09188,92623.0,92608.0,0.010801]
[1767720543043,0.09188,92623.0,92610.0,0.010801]
[1767720543247,0.09188,92623.0,92612.0,0.010801]
[1767720543445,0.09188,92623.0,92597.0,0.09020611]
[1767720543633,0.01281601,92627.0,92609.0,0.010801]
[1767720543839,0.09188,92626.0,92609.0,0.010801]
[1767720544039,0.18390086,92626.0,92609.0,0.010801]
[1767720544333,0.18390086,92626.0,92597.0,0.09020611]
[1767720544334,0.0108,92624.0,92602.0,0.010802]
[1767720544538,0.18390086,92626.0,92590.0,0.18376124]
[1767720544539,0.09202086,92615.0,92590.0,0.18376124]
[1767720544850,0.09202086,92615.0,92601.0,0.010802]
[1767720545242,0.09202086,92615.0,92590.0,0.09188]
[1767720545243,0.07941103,92620.0,92607.0,0.010801]
[1767720545545,0.09202086,92621.0,92607.0,0.010801]
[1767720545741,0.09202086,92621.0,92604.0,0.010802]
[1767720545935,0.09202086,92621.0,92596.0,0.09188124]
[1767720545936,0.09202086,92621.0,92601.0,0.010802]
[1767720546141,0.09202086,92621.0,92596.0,0.09188124]
[1767720546650,0.09202086,92621.0,92602.0,0.010802]
[1767720547748,0.09188,92626.0,92550.0,0.12726855]
[1767720547749,0.09202086,92610.0,92550.0,0.12726855]
[1767720547941,0.1833054,92592.0,92563.0,0.09188]
[1767720548143,0.09188,92596.0,92582.0,0.010804]